bitfinex-derivatives/quotes_SOLF0:USTF0_20250527
["timestamp","ask_amount","ask_price","bid_price","bid_amount"]
[1748309539326,0.03711204,172.37,172.33,0.03744812]
[1748309540629,5.8008,172.35,172.33,0.03744812]
[1748309541528,5.8009,172.34,172.33,0.03744812]
[1748309541930,8.52517711,172.34,172.26,110.18]
[1748309542129,12.97848788,172.36,172.26,5.8033]
[1748309542335,2.72500794,172.35,172.25,145.72]
[1748309542630,12.97848788,172.33,172.25,151.5239]
[1748309542831,0.04060774,172.31,172.27,0.02338952]
[1748309543224,1.99700774,172.31,172.27,0.02338952]
[1748309543722,5.8026,172.29,172.27,0.02338952]
[1748309544628,5.8023,172.3,172.27,0.02338952]
[1748309545632,1.99700774,172.31,172.27,0.02338952]
[1748309546938,1.99700774,172.31,172.28,5.8029]
[1748309547438,0.04060774,172.31,172.28,5.8029]
[1748309548138,0.04060774,172.31,172.27,0.02338952]
[1748309548933,0.04060774,172.31,172.3,5.8022]
[1748309550841,0.04060774,172.31,172.27,0.02338952]
[1748309552044,0.04060774,172.31,172.28,5.8026]
[1748309552345,0.04060774,172.31,172.27,0.02338952]
[1748309552637,5.8026,172.29,172.27,0.02338952]
[1748309554343,0.04060774,172.31,172.27,0.02338952]
[1748309555140,0.04060774,172.31,172.3,5.8022]
[1748309559146,0.04060774,172.31,172.3,110.2]
[1748309560449,0.04060774,172.31,172.28,5.8028]
[1748309560648,0.04060774,172.31,172.27,0.02338952]
[1748309561643,5.8028,172.29,172.27,0.02338952]
[1748309561849,0.04060774,172.31,172.27,0.02338952]
[1748309562845,0.04060774,172.31,172.28,5.8028]
[1748309563343,0.04060774,172.31,172.27,0.02338952]
[1748309564252,0.04060774,172.31,172.28,5.8026]
[1748309564748,0.04060774,172.31,172.29,5.8024]
[1748309566252,0.04060774,172.31,172.3,5.8022]
[1748309566455,0.04060774,172.31,172.27,0.02338952]
[1748309567052,0.04060774,172.31,172.28,5.8028]
[1748309567253,0.04060774,172.31,172.27,0.02338952]
[1748309567555,2.72526296,172.3,172.22,145.0]
[1748309567751,2.0319,172.29,172.22,145.0]
[1748309568554,5.8038,172.26,172.22,150.8049]
[1748309568855,0.03735133,172.27,172.22,145.0]
[1748309569358,0.03735133,172.27,172.24,5.804]
[1748309570557,0.03735133,172.27,172.22,145.0]
[1748309571462,0.03735133,172.27,172.25,5.8037]
[1748309571760,0.03735133,172.27,172.22,145.0]
[1748309572155,0.03735133,172.27,172.25,5.8037]
[1748309573163,0.03735133,172.27,172.26,5.8036]
[1748309576760,7.8887,172.37,172.24,2.0746]
[1748309577160,7.8887,172.37,172.33,5.8012]
[1748309577464,2.0886,172.37,172.31,110.22]
[1748309577661,0.04214049,172.36,172.32,0.03735133]
[1748309577962,2.7261681,172.35,172.28,110.22]
[1748309578168,15.06708788,172.37,172.28,110.22]
[1748309578365,5.8011,172.34,172.28,110.22]
[1748309578567,2.0886,172.37,172.24,2.0746]
[1748309578768,15.06708788,172.37,172.26,5.8033]
[1748309578969,0.04084237,172.33,172.24,110.22]
[1748309579466,5.8022,172.3,172.26,5.8035]
[1748309580567,0.04084237,172.33,172.24,5.8042]
[1748309580771,0.03740315,172.3,172.23,145.02]
[1748309580966,5.84000315,172.3,172.23,145.02]
[1748309581162,0.03740315,172.3,172.23,145.02]
[1748309581872,0.03740315,172.3,172.25,5.8039]
[1748309582575,5.8028,172.29,172.25,5.8039]
[1748309582875,0.03740315,172.3,172.24,5.8042]
[1748309583063,0.03740315,172.3,172.23,145.02]
[1748309583268,0.03740315,172.3,172.23,255.24]
[1748309583674,5.8035,172.27,172.23,255.24]
[1748309584173,5.8035,172.27,172.23,261.0443]
[1748309584572,0.03740315,172.3,172.23,145.02]
[1748309584774,0.03740315,172.3,172.18,2.0945]
[1748309584975,5.8049,172.23,172.18,110.22]
[1748309585181,0.0398932,172.22,172.18,110.22]
[1748309585468,0.0398932,172.22,172.13,1.35963321]
[1748309585871,6.1232932,172.22,172.13,1.35963321]
[1748309586072,5.806,172.19,172.13,1.35963321]
[1748309586270,5.806,172.19,172.11,611.42]
[1748309586271,0.04024388,172.18,172.11,611.42]
[1748309587070,0.04024388,172.18,172.17,5.8066]
[1748309587679,7.22376816,172.27,172.2,5.8054]
[1748309587977,5.25626816,172.27,172.19,110.22]
[1748309588169,5.25626816,172.27,172.2,145.02]
[1748309588764,0.0374526,172.25,172.23,5.8046]
[1748309588974,0.03922312,172.26,172.22,0.03777565]
[1748309589378,0.03922312,172.26,172.25,5.8039]
[1748309601690,2.312e-05,172.26,172.25,5.8039]
[1748309601889,5.25626816,172.38,172.25,5.8]
[1748309602183,5.25626816,172.38,172.24,14.96468788]
[1748309602690,5.25626816,172.38,172.33,5.801]
[1748309602893,0.04289133,172.37,172.34,0.04344786]
[1748309603093,0.03674885,172.37,172.34,0.04119644]
[1748309604196,5.8002,172.36,172.34,0.04119644]
[1748309604492,0.03674885,172.37,172.34,0.04119644]
[1748309604696,5.8006,172.36,172.34,0.04119644]
[1748309604889,0.03674885,172.37,172.34,0.04119644]
[1748309605090,13.01523673,172.37,172.24,1.9862]
[1748309605293,12.97848788,172.33,172.21,144.22]
[1748309605494,8.73456399,172.32,172.21,144.22]
[1748309605691,6.0232,172.32,172.24,5.804]
[1748309606084,5.8033,172.28,172.24,5.804]
[1748309606290,5.8033,172.28,172.26,0.03827056]
[1748309606594,0.0395418,172.3,172.26,0.03827056]
[1748309607098,5.8420418,172.3,172.26,0.03827056]
[1748309607696,0.0395418,172.3,172.26,0.03827056]
[1748309609300,5.8418418,172.3,172.27,5.803]
[1748309609897,0.0395418,172.3,172.26,0.03827056]
[1748309610489,0.0395418,172.3,172.27,5.8032]
[1748309610889,0.0395418,172.3,172.26,0.03827056]
[1748309611294,5.8029,172.29,172.26,0.03827056]
[1748309611801,2.71105834,172.28,172.21,144.22]
[1748309611998,157.19848788,172.29,172.12,2.0051]
[1748309612196,2.71098678,172.28,172.13,254.44]
[1748309612398,2.71098678,172.27,172.13,254.44]
[1748309612598,157.19848788,172.29,172.13,254.44]
[1748309612897,5.84297903,172.23,172.18,5.806]
[1748309613294,5.84297903,172.23,172.15,110.22]
[1748309613295,0.03807903,172.23,172.15,144.22]
[1748309613496,5.8052,172.22,172.15,144.22]
[1748309613799,0.03807903,172.23,172.15,144.22]
[1748309616394,5.84297903,172.23,172.18,5.8061]
[1748309616600,0.03807903,172.23,172.18,5.8061]
[1748309616895,0.03807903,172.23,172.15,144.22]
[1748309618096,5.84297903,172.23,172.19,5.8059]
[1748309618300,0.03807903,172.23,172.15,144.22]
[1748309619300,5.805,172.22,172.18,5.806]
[1748309619697,0.03807903,172.23,172.15,144.22]
[1748309620101,5.805,172.22,172.18,5.806]
[1748309620892,5.8054,172.21,172.1,2.0843]
[1748309621092,0.03762282,172.17,172.11,144.28]
[1748309621300,0.03762282,172.17,172.12,110.24]
[1748309621493,0.03762282,172.17,172.16,5.8067]
[1748309626500,0.03762282,172.17,172.1,2.0843]
[1748309626699,0.03762282,172.17,172.11,143.46]
[1748309627202,5.84442282,172.17,172.11,143.46]
[1748309628209,0.03762282,172.17,172.14,5.8077]
[1748309628504,0.03762282,172.17,172.11,143.46]
[1748309628805,5.84452282,172.17,172.13,5.8078]
[1748309629703,5.8077,172.14,171.9,356.37345682]
[1748309629904,0.03845284,172.13,172.04,2.0398]
[1748309630104,0.03845284,172.13,172.05,143.48]
[1748309631008,0.03845284,172.13,172.05,253.76]
[1748309631507,0.03845284,172.13,172.09,5.8091]
[1748309632206,5.84655284,172.13,172.09,5.8091]
[1748309632607,0.03845284,172.13,172.1,5.8089]
[1748309632804,5.84645284,172.13,172.1,5.8089]
[1748309633006,5.84645284,172.13,172.05,253.76]
[1748309633304,0.03845284,172.13,172.05,143.48]
[1748309633707,0.03845284,172.13,172.05,149.2906]
[1748309633908,0.03845284,172.13,172.05,143.48]
[1748309634507,5.8088,172.11,172.05,143.48]
[1748309635408,0.03845284,172.13,172.05,143.48]
[1748309635910,0.03845284,172.13,172.05,149.2906]
[1748309636410,5.8093,172.1,172.06,5.8103]
[1748309636808,5.8093,172.1,172.05,143.48]
[1748309637114,0.04002933,172.09,172.0,501.42]
[1748309637313,0.04002933,172.09,172.01,143.52]
[1748309637712,0.04002933,172.09,172.06,5.8103]
[1748309638717,0.04002933,172.09,172.01,143.52]
[1748309639402,0.04002933,172.09,172.08,5.8097]
[1748309640018,0.04002933,172.09,172.07,5.81]
[1748309640519,0.04002933,172.09,172.01,143.52]
[1748309640711,0.04002933,172.09,172.06,5.8101]
[1748309641810,0.04002933,172.09,172.03,5.8113]
[1748309642110,0.04002933,172.09,172.02,143.54]
[1748309642314,5.8117,172.03,171.99,5.8125]
[1748309642516,0.03979234,172.03,171.98,143.56]
[1748309643015,0.03979234,172.03,172.01,5.812]
[1748309643218,0.03979234,172.03,171.98,143.56]
[1748309643618,143.52,172.12,171.99,2.0639]
[1748309643820,17.10943654,172.09,171.96,3.8486]
[1748309644215,17.10943654,172.09,171.96,7.7191]
[1748309644618,0.03844015,172.04,172.01,0.03898529]
[1748309645622,0.03844015,172.04,172.01,5.85098529]
[1748309646219,0.03844015,172.04,172.01,0.03898529]
[1748309646630,0.03844015,172.04,172.03,5.8114]
[1748309646830,143.58,172.1,172.02,1.8938]
[1748309647040,147.6673,172.14,172.02,1.8938]
[1748309647226,5.8086,172.12,172.02,1.8938]
[1748309647631,147.6673,172.14,172.03,110.36]
[1748309647827,0.03663876,172.09,172.05,0.04309712]
[1748309648022,0.03663876,172.09,172.05,143.62309712]
[1748309648223,150.38986548,172.2,172.05,143.62309712]
[1748309648430,150.38986548,172.2,172.08,8.74609753]
[1748309648820,6.80986548,172.2,172.11,8.74609753]
[1748309649025,6.80986548,172.2,172.12,255.8338]
[1748309649226,12.61566548,172.2,172.16,5.8069]
[1748309649426,0.0404199,172.17,172.16,5.8069]
[1748309649626,0.03952325,172.18,172.16,5.8069]
[1748309649826,0.03952325,172.18,172.15,0.04118592]
[1748309651330,0.03952325,172.18,172.17,5.8066]
[1748309651836,0.03952325,172.18,172.17,149.3666]
[1748309652434,143.56,172.28,172.17,143.56]
[1748309652735,5.8039,172.26,172.17,143.56]
[1748309652935,5.8039,172.26,172.2,5.8053]
[1748309653134,5.8039,172.26,172.17,143.56]
[1748309653330,0.03779246,172.23,172.2,0.04262106]
[1748309653537,0.03779246,172.23,172.21,5.805]
[1748309654341,5.8032,172.28,172.2,110.38262106]
[1748309654632,145.5757,172.32,172.2,110.38262106]
[1748309654832,145.5757,172.32,172.2,110.34]
[1748309655337,0.04006529,172.28,172.24,0.03769444]
[1748309655538,0.04006529,172.28,172.24,143.55769444]
[1748309655733,147.507,172.36,172.24,143.55769444]
[1748309655933,147.507,172.36,172.24,143.52]
[1748309656332,7.19976816,172.38,172.25,12.94346991]
[1748309656532,7.19976816,172.38,172.24,143.52]
[1748309656837,0.03959888,172.33,172.29,0.04415305]
[1748309657339,0.03959888,172.33,172.29,142.64415305]
[1748309658438,0.03959888,172.33,172.32,5.8016]
[1748309659039,0.03959888,172.33,172.3,5.802]
[1748309659339,0.03959888,172.33,172.29,142.64415305]
[1748309660042,0.03959888,172.33,172.3,5.8022]
[1748309660240,0.03959888,172.33,172.29,142.64415305]
[1748309660446,0.03959888,172.33,172.29,0.04415305]
[1748309661342,5.84089888,172.33,172.29,0.04415305]
[1748309661736,0.03959888,172.33,172.29,0.04415305]
[1748309664643,0.03959888,172.33,172.3,5.802]
[1748309664946,0.03959888,172.33,172.29,0.04415305]
[1748309666041,5.84099888,172.33,172.29,0.04415305]
[1748309667259,0.03959888,172.33,172.29,0.04415305]
[1748309667652,0.03959888,172.33,172.3,5.802]
[1748309668357,0.03959888,172.33,172.29,148.38675305]
[1748309668752,0.03959888,172.33,172.29,142.58415305]
[1748309668953,0.03959888,172.33,172.29,148.38675305]
[1748309669254,0.03959888,172.33,172.29,0.04415305]
[1748309669653,5.8023,172.3,172.29,0.04415305]
[1748309670157,0.03959888,172.33,172.25,142.52]
[1748309670356,6.0696,172.34,172.21,142.52]
[1748309670660,2.0578,172.34,172.21,252.74]
[1748309670859,5.802,172.31,172.21,252.74]
[1748309671057,0.03693375,172.28,172.24,0.04300361]
[1748309671257,3.375e-05,172.28,172.27,5.8033]
[1748309671452,3.375e-05,172.28,172.27,148.3233]
[1748309673157,142.52,172.38,172.34,5.8008]
[1748309673358,5.7993,172.39,172.34,5.8008]
[1748309674147,5.84211879,172.38,172.35,0.03753428]
[1748309674655,5.7999,172.37,172.35,0.03753428]
[1748309676063,5.8003,172.36,172.35,0.03753428]
[1748309676465,0.04231879,172.38,172.35,0.03753428]
[1748309676963,5.8003,172.36,172.35,0.03753428]
[1748309678265,5.8,172.37,172.35,0.03753428]
[1748309678467,0.04231879,172.38,172.35,0.03753428]
[1748309678867,5.8003,172.36,172.35,0.03753428]
[1748309681268,5.8,172.37,172.35,0.03753428]
[1748309681671,0.04231879,172.38,172.35,0.03753428]
[1748309681869,5.8003,172.36,172.35,0.03753428]
[1748309682470,5.8016,172.33,172.3,142.52]
[1748309682971,142.5,172.37,172.26,5.8033]
[1748309683465,0.0396682,172.33,172.28,5.8029]
[1748309683659,0.0396682,172.33,172.3,0.03754335]
[1748309683859,5.802,172.31,172.3,0.03754335]
[1748309688271,5.802,172.31,172.3,4.335e-05]
[1748309688772,147.4628,172.32,172.22,141.56]
[1748309689269,147.4628,172.32,172.2,5.8054]
[1748309689270,5.8042,172.25,172.2,5.8054]
[1748309689471,5.8042,172.25,172.17,642.72]
[1748309689971,0.03784413,172.23,172.21,5.8051]
[1748309690471,0.03784413,172.23,172.2,5.8056]
[1748309690672,0.03784413,172.23,172.19,0.04105058]
[1748309690872,1.98424413,172.23,172.19,0.04105058]
[1748309691271,1.98424413,172.23,172.12,141.58]
[1748309691474,5.8065,172.18,172.13,5.8077]
[1748309691774,141.58,172.21,172.1,141.58]
[1748309691974,5.8068,172.17,172.1,141.58]
[1748309692174,0.03662358,172.15,172.12,0.03913044]
[1748309692678,0.03662358,172.15,172.14,5.8077]
[1748309694277,0.03662358,172.15,172.12,5.84723044]
[1748309694574,0.03662358,172.15,172.12,0.03913044]
[1748309695376,0.03662358,172.15,172.14,5.8077]
[1748309696275,0.03662358,172.15,172.13,5.8079]
[1748309696775,0.03662358,172.15,172.12,0.03913044]
[1748309697171,0.03662358,172.15,172.12,5.84723044]
[1748309697375,0.03662358,172.15,172.12,0.03913044]
[1748309697777,0.03662358,172.15,172.14,5.8077]
[1748309698177,1.9464,172.23,172.13,1.9082]
[1748309698378,5.8051,172.22,172.13,1.9082]
[1748309699179,0.04042964,172.19,172.16,0.04159058]
[1748309700977,5.8067,172.17,172.16,0.04159058]
[1748309702280,0.04042964,172.19,172.16,0.04159058]
[1748309703286,0.04042964,172.19,172.16,5.84859058]
[1748309703475,0.04042964,172.19,172.16,0.04159058]
[1748309703884,0.04042964,172.19,172.17,5.8067]
[1748309704282,0.04042964,172.19,172.16,0.04159058]
[1748309704585,0.04042964,172.19,172.16,5.84839058]
[1748309704986,0.04042964,172.19,172.16,0.04159058]
[1748309705890,0.04042964,172.19,172.11,141.66]
[1748309706094,0.04042964,172.19,172.08,501.2]
[1748309706280,5.8079,172.14,172.1,5.8087]
[1748309706980,5.8079,172.14,172.1,0.03869992]
[1748309706981,141.70191563,172.14,172.1,0.03869992]
[1748309707184,3.9062,172.13,172.02,141.66]
[1748309707590,5.81,172.08,172.04,5.8108]
[1748309707791,3.9062,172.13,172.02,141.66]
[1748309708090,5.85352444,172.09,172.06,0.03728258]
[1748309708591,0.04392444,172.09,172.06,0.03728258]
[1748309708788,141.72392444,172.09,171.98,141.68]
[1748309709092,5.8107,172.06,171.98,141.68]
[1748309709286,141.68,172.09,171.96,2.0851]
[1748309709593,5.8118,172.02,171.97,5.8133]
[1748309709785,0.03726742,172.01,171.98,0.02795524]
[1748309710393,0.03726742,172.01,171.98,5.84075524]
[1748309710590,0.03726742,172.01,171.98,0.02795524]
[1748309711194,0.03726742,172.01,171.89,141.72]
[1748309711492,12.94346991,172.02,171.89,141.72]
[1748309712090,5.85597907,171.97,171.89,141.72]
[1748309712394,0.04257907,171.97,171.89,141.72]
[1748309712595,5.8145,171.94,171.89,147.5361]
[1748309712795,5.8145,171.94,171.84,1.8924]
[1748309712796,0.0410217,171.93,171.84,1.8924]
[1748309712990,0.0410217,171.93,171.83,501.74]
[1748309713698,5.8561217,171.93,171.88,5.8163]
[1748309714596,5.8152,171.92,171.82,141.72]
[1748309714901,0.03791822,171.89,171.82,141.72]
[1748309715094,0.03791822,171.89,171.88,5.8165]
[1748309715289,0.03791822,171.89,171.82,141.72]
[1748309716192,0.03791822,171.89,171.84,5.8178]
[1748309716398,0.03791822,171.89,171.82,141.72]
[1748309716895,0.03791822,171.89,171.85,5.8174]
[1748309717602,0.03791822,171.89,171.82,141.72]
[1748309719301,0.03791822,171.89,171.88,5.8165]
[1748309724494,146.7533,171.98,171.93,5.8147]
[1748309725010,140.94,171.98,171.93,5.8147]
[1748309725400,146.7533,171.98,171.94,0.03709409]
[1748309725703,0.03802491,171.97,171.94,0.03709409]
[1748309726103,5.85142491,171.97,171.94,0.03709409]
[1748309727997,0.03802491,171.97,171.94,0.03709409]
[1748309728507,5.85172491,171.97,171.94,0.03709409]
[1748309729213,0.03802491,171.97,171.94,0.03709409]
[1748309730202,0.03802491,171.97,171.94,140.97709409]
[1748309730412,0.03802491,171.97,171.94,251.41709409]
[1748309731421,0.03802491,171.97,171.96,5.8138]
[1748309734422,140.92,172.11,172.04,5.811]
[1748309734822,140.92,172.11,172.01,140.92]
[1748309735018,5.8096,172.09,172.03,5.8113]
[1748309735422,0.03716916,172.08,172.04,0.04183063]
[1748309736126,5.84686916,172.08,172.04,0.04183063]
[1748309736424,0.03716916,172.08,172.04,0.04183063]
[1748309737527,5.84716916,172.08,172.04,0.04183063]
[1748309738120,5.8103,172.07,172.04,0.04183063]
[1748309738321,0.03716916,172.08,172.04,0.04183063]
[1748309738928,5.8103,172.07,172.04,0.04183063]
[1748309739221,0.03716916,172.08,172.04,0.04183063]
[1748309739427,5.8128,171.99,171.94,5.8144]
[1748309739821,140.88,172.04,171.92,140.88]
[1748309740021,5.8123,172.01,171.95,5.8138]
[1748309740221,1.9496,172.03,171.92,140.88]
[1748309740421,0.03793239,171.99,171.96,0.03411249]
[1748309741028,5.85093239,171.99,171.96,0.03411249]
[1748309742630,0.03793239,171.99,171.96,0.03411249]
[1748309743331,0.03793239,171.99,171.97,5.8132]
[1748309745233,0.03793239,171.99,171.97,5.8134]
[1748309745830,0.03793239,171.99,171.96,0.03411249]
[1748309748834,0.03793239,171.99,171.96,5.84781249]
[1748309749032,0.03793239,171.99,171.96,0.03411249]
[1748309750537,5.8131,171.98,171.96,0.03411249]
[1748309750734,0.03793239,171.99,171.96,0.03411249]
[1748309751334,0.03793239,171.99,171.98,5.8131]
[1748309751930,0.03793239,171.99,171.97,5.8133]
[1748309752235,0.03793239,171.99,171.97,145.7533]
[1748309753533,0.03793239,171.99,171.98,5.8131]
[1748309756336,0.03793239,171.99,171.96,0.03411249]
[1748309757339,5.8133,171.98,171.96,0.03411249]
[1748309757642,0.03793239,171.99,171.96,0.03411249]
[1748309758739,0.03793239,171.99,171.98,5.8131]
[1748309760442,0.03793239,171.99,171.97,5.8134]
[1748309760941,0.03793239,171.99,171.96,0.03411249]
[1748309761940,139.97793239,171.99,171.85,139.94]
[1748309762240,12.94346991,171.97,171.81,1.35963321]
[1748309762440,5.8156,171.91,171.82,139.94]
[1748309762642,2.71570464,171.96,171.82,139.94]
[1748309762643,3.9755,171.98,171.82,139.94]
[1748309762836,2.71562708,171.97,171.82,139.94]
[1748309763037,0.03874865,171.92,171.82,139.94]
[1748309763641,5.8156,171.91,171.82,139.94]
[1748309763944,0.03999943,171.88,171.82,139.94]
[1748309764142,0.03669465,171.87,171.82,139.94]
[1748309764344,0.04370651,171.86,171.85,5.8172]
[1748309764643,0.04146052,171.87,171.82,139.94]
[1748309764944,0.04239327,171.86,171.82,139.94]
[1748309765145,0.0402785,171.86,171.82,139.94]
[1748309765744,0.0402785,171.86,171.85,5.8172]
[1748309766846,3.9755,171.98,171.85,5.82]
[1748309767146,3.9755,171.98,171.84,12.94346991]
[1748309767346,3.9755,171.98,171.92,5.8149]
[1748309767747,0.03929599,171.97,171.93,0.03920855]
[1748309767940,5.85279599,171.97,171.93,5.85390855]
[1748309768137,0.03929599,171.97,171.93,5.85390855]
[1748309768347,5.85279599,171.97,171.93,5.85390855]
[1748309768548,0.03929599,171.97,171.93,5.85390855]
[1748309769446,0.03929599,171.97,171.94,5.8144]
[1748309770140,5.85279599,171.97,171.93,5.85390855]
[1748309770646,0.03929599,171.97,171.93,5.85390855]
[1748309770848,0.03929599,171.97,171.93,0.03920855]
[1748309771246,5.85299599,171.97,171.93,0.03920855]
[1748309771743,0.03929599,171.97,171.93,5.85400855]
[1748309772150,0.03929599,171.97,171.93,0.03920855]
[1748309772343,0.03929599,171.97,171.96,5.8138]
[1748309772542,0.03929599,171.97,171.93,0.03920855]
[1748309772843,0.03929599,171.97,171.95,5.814]
[1748309773038,0.03929599,171.97,171.93,0.03920855]
[1748309774939,5.85299599,171.97,171.93,0.03920855]
[1748309775343,0.03929599,171.97,171.93,0.03920855]
[1748309775548,0.03929599,171.97,171.84,502.16]
[1748309775850,15.65834147,171.96,171.84,642.14]
[1748309776153,6.87147156,171.95,171.84,642.14]
[1748309776350,139.98,171.94,171.84,642.14]
[1748309776550,0.04135069,171.91,171.84,642.14]
[1748309776746,5.85705069,171.91,171.84,642.14]
[1748309776953,0.04135069,171.91,171.84,502.16]
[1748309777251,5.8161,171.9,171.85,5.8172]
[1748309777651,0.04135069,171.91,171.72,1.35963321]
[1748309777849,0.039412,171.85,171.77,139.98]
[1748309778045,0.039412,171.85,171.78,110.44]
[1748309778448,0.039412,171.85,171.74,1.961]
[1748309778748,0.039412,171.85,171.77,250.42]
[1748309779252,0.039412,171.85,171.77,139.98]
[1748309779452,0.039412,171.85,171.78,110.44]
[1748309779955,0.039412,171.85,171.74,1.961]
[1748309780253,0.039412,171.85,171.77,139.12]
[1748309780455,0.039412,171.85,171.81,5.8186]
[1748309780856,0.039412,171.85,171.77,139.12]
[1748309781955,0.039412,171.85,171.82,5.8185]
[1748309782155,0.039412,171.85,171.77,139.12]
[1748309782658,0.039412,171.85,171.81,5.8187]
[1748309783855,0.039412,171.85,171.77,139.12]
[1748309785062,0.039412,171.85,171.82,5.8183]
[1748309785555,0.039412,171.85,171.77,139.12]
[1748309786861,5.857012,171.85,171.77,139.12]
[1748309787763,0.039412,171.85,171.81,5.8188]
[1748309789558,0.039412,171.85,171.8,5.8191]
[1748309789759,5.857212,171.85,171.8,5.8191]
[1748309789960,5.857212,171.85,171.77,139.12]
[1748309791165,0.039412,171.85,171.81,5.8186]
[1748309791665,0.039412,171.85,171.76,502.22]
[1748309791862,0.039412,171.85,171.78,12.94346991]
[1748309792068,0.039412,171.85,171.77,143.2773]
[1748309792069,0.039412,171.85,171.79,12.94346991]
[1748309792865,0.039412,171.85,171.84,5.8178]
[1748309793067,0.039412,171.85,171.84,144.9978]
[1748309793967,0.039412,171.85,171.84,139.18]
[1748309794464,0.039412,171.85,171.8,139.18]
[1748309796066,0.039412,171.85,171.8,144.9991]
[1748309796265,0.039412,171.85,171.8,139.18]
[1748309797263,5.857012,171.85,171.81,5.8188]
[1748309797857,0.039412,171.85,171.8,139.18]
[1748309798468,0.039412,171.85,171.84,5.8178]
[1748309799270,0.039412,171.85,171.8,139.18]
[1748309799866,0.039412,171.85,171.79,139.18]
[1748309800467,0.039412,171.85,171.82,5.8182]
[1748309800769,0.039412,171.85,171.79,139.18]
[1748309801966,0.039412,171.85,171.71,139.18]
[1748309802167,5.8201,171.78,171.73,5.8213]
[1748309802370,0.03740877,171.8,171.71,139.18]
[1748309802662,0.04250665,171.77,171.74,5.8211]
[1748309802863,0.04250665,171.77,171.71,139.18]
[1748309804469,0.04250665,171.77,171.76,5.8205]
[1748309805670,0.04250665,171.77,171.66,641.68]
[1748309805870,0.0431225,171.73,171.66,641.68]
[1748309806175,0.0431225,171.73,171.71,5.8222]
[1748309806766,0.0431225,171.73,171.66,641.68]
[1748309807373,0.0431225,171.73,171.68,5.8229]
[1748309807572,0.0431225,171.73,171.66,641.68]
[1748309808276,0.0431225,171.73,171.69,5.8228]
[1748309808577,0.0431225,171.73,171.66,502.48]
[1748309808776,0.0431225,171.73,171.67,139.22]
[1748309809172,5.8647225,171.73,171.68,5.8232]
[1748309809474,0.0431225,171.73,171.67,139.22]
[1748309809674,0.0431225,171.73,171.68,138.38]
[1748309810476,5.8225,171.71,171.68,138.38]
[1748309810772,0.0431225,171.73,171.68,138.38]
[1748309810974,0.0431225,171.73,171.68,144.2032]
[1748309811474,0.0431225,171.73,171.69,5.8228]
[1748309812483,5.8647225,171.73,171.69,5.8228]
[1748309812680,0.0431225,171.73,171.7,5.8224]
[1748309812980,0.0431225,171.73,171.68,138.38]
[1748309813879,0.0431225,171.73,171.68,144.2032]
[1748309814382,0.0431225,171.73,171.68,138.38]
[1748309815083,5.8647225,171.73,171.69,5.8228]
[1748309815278,0.0431225,171.73,171.68,138.38]
[1748309817476,0.0431225,171.73,171.64,138.42]
[1748309817676,0.0431225,171.73,171.64,144.2445]
[1748309817875,0.0431225,171.73,171.64,138.42]
[1748309818280,0.0431225,171.73,171.64,144.2443]
[1748309818482,0.0431225,171.73,171.64,138.42]
[1748309818679,12.98659241,171.73,171.64,138.42]
[1748309819379,3.8774,171.72,171.64,138.42]
[1748309820982,0.0431225,171.73,171.64,138.42]
[1748309821379,5.8649225,171.73,171.64,138.42]
[1748309821981,5.8219,171.72,171.64,138.42]
[1748309822487,0.0431225,171.73,171.64,138.42]
[1748309822681,5.8223,171.71,171.66,5.8239]
[1748309822882,5.8223,171.71,171.64,138.42]
[1748309823076,0.04241336,171.69,171.64,138.42]
[1748309823282,0.04241336,171.69,171.68,5.8232]
[1748309824789,0.04241336,171.69,171.64,138.42]
[1748309825287,0.04241336,171.69,171.68,5.8232]
[1748309825684,19.75333539,171.86,171.68,5.82]
[1748309825886,6.80986548,171.86,171.69,645.408]
[1748309826082,6.80986548,171.86,171.71,12.94346991]
[1748309826284,6.80986548,171.86,171.72,110.58]
[1748309826688,0.03824089,171.8,171.76,0.04266913]
[1748309826987,6.80986548,171.86,171.77,138.44]